[Event "USA-ch Junior Girls 2018"]
[Site "Saint Louis"]
[Date "2018.07.21"]
[Round "9"]
[White "Samadashvili, Martha"]
[Black "Wu, Rochelle"]
[Result "1/2-1/2"]
[ECO "B52"]
[WhiteElo "2040"]
[BlackElo "2110"]
[Annotator "NA"]
[PlyCount "163"]
[EventDate "2018.07.12"]
[EventType "tourn"]
[EventCountry "USA"]
[SourceTitle "playchess.com"]
[Source "ChessBase"]
[SourceQuality "1"]
[TimeControl "40/5400+30:1800+30"]

1. e4 {[%emt 0:00:00]} c5 {[%emt 0:00:08]} 2. Nf3 {[%emt 0:00:00]} d6 {[%emt 0:00:04]} 3. Bb5+ {[%emt 0:00:00]} Bd7 {[%emt 0:00:21]} 4. Bxd7+ {[%emt 0:00:00]} Qxd7 {[%emt 0:00:30]} 5. c4 {[%emt 0:00:15]} Nf6 {[%emt 0:00:22]} 6. Nc3 {[%emt 0:00:06]} g6 {[%emt 0:00:36] B52: Sicilian: Moscow Variation with 3...Bd7} 7. d4 {[%emt 0:00:39]} cxd4 {[%emt 0:00:30]} 8. Nxd4 {[%emt 0:00:04]} Bg7 {[%emt 0:00:31]} 9. f3 {[%emt 0:00:20]} (9. h3 Qc7 10. b3 Qa5 11. Bd2 Nxe4 12. Nxe4 Qe5 13. Qb1 f5 14. Bc3 Qxe4+ 15. Qxe4 fxe4 {1-0 (47) Malakhov,V (2691)-Timofeev,A (2579) Sochi 2018}) 9... O-O {[%emt 0:00:28]} 10. O-O {[%emt 0:00:09]} Rc8 {[%emt 0:00:32]} 11. b3 {[%emt 0:00:38]} d5 {[%emt 0:01:01]} 12. e5 {[%emt 0:26:23]} Ne8 {[%emt 0:03:07]} 13. Nxd5 {[%emt 0:07:18]} e6 {[%emt 0:01:09]} 14. Nc3 {[%emt 0:06:40]} Bxe5 {[%emt 0:01:46]} 15. Be3 {[%emt 0:03:45]} Rd8 {[%emt 0:01:56]} 16. Nde2 {[%emt 0:01:38]} Qc7 {[%emt 0:02:48]} 17. Qc2 {[%emt 0:06:31]} Bxh2+ {[%emt 0:00:44]} 18. Kh1 $146 {[%emt 0:00:33]} Qe5 {[%emt 0:01:11]} 19. Qe4 {[%emt 0:03:22]} Qh5 {[%emt 0:01:44]} 20. Qg4 {[%emt 0:00:56]} Qxg4 {[%emt 0:00:05]} 21. fxg4 {[%emt 0:00:04]} Be5 {[%emt 0:00:30]} 22. Rad1 {[%emt 0:00:21]} Nc6 {[%emt 0:00:16]} 23. Ne4 {[%emt 0:01:31]} Bg7 {[%emt 0:05:38]} 24. g5 {[%emt 0:05:47]} b6 {[%emt 0:06:33]} 25. c5 {[%emt 0:04:07]} bxc5 {[%emt 0:03:47]} 26. Bxc5 {[%emt 0:00:13]} Be5 {[%emt 0:02:23]} 27. b4 {[%emt 0:04:26]} a6 {[%emt 0:00:13]} 28. a4 {[%emt 0:01:48]} Nc7 {[%emt 0:03:06]} 29. N2c3 {[%emt 0:03:57]} Rxd1 {[%emt 0:09:41]} 30. Rxd1 {[%emt 0:00:14]} Rd8 {[%emt 0:01:29]} 31. Rb1 {[%emt 0:05:05]} Bxc3 {[%emt 0:05:52]} 32. Nxc3 {[%emt 0:00:06]} Nd5 {[%emt 0:01:15]} 33. Ne4 {[%emt 0:08:24] [#]} (33. Nxd5 $1 $11 {bleibt in der Remisbreite.} Rxd5 34. Be3) 33... Rb8 $2 {[%emt 0:14:07]} (33... Ncxb4 $1 $17 {[%mdl 512] hält den Druck.} 34. Rxb4 (34. Bxb4 $2 Rb8 $19) 34... Nxb4 35. Bxb4 Rd4 36. Nf6+ Kh8) 34. b5 {[%emt 0:01:08]} axb5 {[%emt 0:00:10]} 35. axb5 {[%emt 0:00:21]} Kg7 {[%emt 0:02:44]} 36. b6 {[%emt 0:02:04]} Nd8 {[%emt 0:01:14]} 37. Bd6 {[%emt 0:02:36]} Rb7 {[%emt 0:05:26]} 38. Nc5 {[%emt 0:01:19]} Rxb6 {[%emt 0:00:05]} 39. Rxb6 {[%emt 0:00:07]} Nxb6 {[%emt 0:00:03]} 40. Be5+ {[%emt 0:00:00]} Kg8 {[%emt 0:00:32]} 41. Bc7 {[%emt 0:01:13]} Nd5 {[%emt 0:00:21]} 42. Bxd8 {[%emt 0:00:06]} Kg7 {[%emt 0:01:09]} 43. Ne4 {[%emt 0:01:50]} h6 {[%emt 0:05:34]} 44. Kh2 {[%emt 0:01:49]} hxg5 {[%emt 0:00:05]} 45. Nxg5 {[%emt 0:00:27]} Ne3 {[%emt 0:00:15]} 46. Kg3 {[%emt 0:00:43]} Nf5+ {[%emt 0:00:21]} 47. Kf4 {[%emt 0:00:33]} Nd4 {[%emt 0:00:42]} ({Lieber} 47... Nd6 48. Ke5 Nc4+ 49. Kd4 Nd6) 48. Ne4 {[%emt 0:05:21]} e5+ {[%emt 0:07:13]} 49. Ke3 {[%emt 0:00:33]} f5 {[%emt 0:00:56]} 50. Bf6+ {[%emt 0:02:30]} Kh6 {[%emt 0:01:11]} 51. Bxe5 {[%emt 0:01:43]} Ne6 {[%emt 0:00:11]} 52. Nd6 {[%emt 0:01:16]} Kh5 {[%emt 0:00:54]} 53. Kf3 {[%emt 0:00:44]} Nc5 {[%emt 0:01:32]} 54. Bf6 {[%emt 0:02:46]} Nd7 {[%emt 0:00:56]} 55. Bd4 {[%emt 0:00:19]} Nf8 {[%emt 0:00:28]} 56. Be3 {[%emt 0:02:31]} Ne6 {[%emt 0:00:37]} 57. g3 $2 {[%emt 0:01:52]} (57. Bb6 $142) 57... Nc7 $1 {[%emt 0:00:48]} 58. Nf7 {[%emt 0:01:06]} Ne6 {[%emt 0:00:26]} 59. Nd6 {[%emt 0:02:41]} ({Lieber} 59. Ne5 $16) 59... Nc7 {[%emt 0:00:08]} 60. Bc1 {[%emt 0:01:11]} Ne6 {[%emt 0:00:42]} 61. Bb2 {[%emt 0:00:57]} Ng5+ {[%emt 0:00:26] [#]} 62. Kf4 $2 {[%emt 0:00:48]} Nh3+ $11 {[%emt 0:00:23]} 63. Kf3 {[%emt 0:00:45]} Ng5+ {[%emt 0:00:06] [#]} {Weiss braucht} 64. Kg2 $1 $18 {[%emt 0:00:02]} Ne6 {[%emt 0:00:45]} 65. Bc1 {[%emt 0:04:42]} f4 {[%emt 0:01:18]} 66. Ne8 {[%emt 0:01:28]} g5 {[%emt 0:00:36]} 67. gxf4 {[%emt 0:00:18]} gxf4 {[%emt 0:00:12]} 68. Kf3 {[%emt 0:00:38]} Kg6 {[%emt 0:00:14]} 69. Kg4 {[%emt 0:00:20]} Nd4 {[%emt 0:00:55]} 70. Bxf4 {[%emt 0:00:14]} Nb5 {[%emt 0:00:23]} 71. Be5 {[%emt 0:00:30]} Na7 {[%emt 0:00:24]} 72. Nd6 {[%emt 0:00:19]} Nc6 {[%emt 0:00:07]} 73. Bb2 {[%emt 0:00:08]} Ne7 {[%emt 0:00:34]} 74. Nc4 {[%emt 0:00:23]} Kf7 {[%emt 0:00:13]} 75. Kf4 {[%emt 0:00:31]} Ke6 {[%emt 0:00:05]} 76. Ke4 {[%emt 0:00:02]} Nf5 {[%emt 0:00:10]} 77. Be5 {[%emt 0:00:21]} Ne7 {[%emt 0:00:13]} 78. Na5 {[%emt 0:00:09]} Ng8 {[%emt 0:00:28]} 79. Nb7 {[%emt 0:00:23]} Nf6+ {[%emt 0:00:23]} 80. Kd4 {[%emt 0:00:04]} Nd7 {[%emt 0:00:26]} 81. Bg3 {[%emt 0:00:41]} Nf6 {[%emt 0:00:09]} 82. Nc5+ {[%emt 0:00:09]} 1/2-1/2

[Event "USA-ch Junior Girls 2018"]
[Site "Saint Louis"]
[Date "2018.07.21"]
[Round "9"]
[White "Morris-Suzuki, Sophie"]
[Black "Vittal, Sanjana"]
[Result "1-0"]
[ECO "D31"]
[WhiteElo "1980"]
[BlackElo "1947"]
[Annotator "NA RC"]
[PlyCount "101"]
[EventDate "2018.07.12"]
[EventType "tourn"]
[EventCountry "USA"]
[SourceTitle "playchess.com"]
[Source "ChessBase"]
[SourceQuality "1"]
[TimeControl "40/5400+30:1800+30"]

1. d4 {[%emt 0:00:00]} d5 {[%emt 0:00:04]} 2. c4 {[%emt 0:00:00]} e6 {[%emt 0:00:04]} 3. Nc3 {[%emt 0:00:00]} Bb4 {[%emt 0:00:09]} 4. a3 {[%emt 0:00:08]} Bxc3+ {[%emt 0:00:06]} 5. bxc3 {[%emt 0:00:07]} Nf6 {[%emt 0:00:09]} 6. e3 {[%emt 0:00:42]} c6 {[%emt 0:00:31]} 7. Bd3 {[%emt 0:01:44]} O-O {[%emt 0:01:23]} 8. cxd5 {[%emt 0:01:57]} exd5 {[%emt 0:01:23]} 9. f3 {[%emt 0:00:11]} Re8 {[%emt 0:03:08]} 10. Ne2 {[%emt 0:00:20]} b6 {[%emt 0:05:45]} 11. O-O {[%emt 0:00:36] E27: Nimzo-Indian: Sämisch: 5...0-0 6 f3} Ba6 {[%emt 0:01:11]} 12. Ng3 {[%emt 0:00:45]} c5 {[%emt 0:08:21]} 13. Ra2 {[%emt 0:00:37]} Bxd3 {[%emt 0:06:19]} 14. Qxd3 {[%emt 0:00:10]} Nc6 {[%emt 0:00:14]} 15. Re2 {[%emt 0:06:19]} Qd7 {[%emt 0:06:15]} 16. Bb2 {[%emt 0:32:35]} Rad8 {[%emt 0:05:49]} 17. Nf5 $146 {[%emt 0:01:43]} ({Predecessor:} 17. Rd1) 17... Ne7 {[%emt 0:07:45]} 18. Ng3 {[%emt 0:01:52]} h5 {[%emt 0:06:57]} 19. e4 {[%emt 0:02:42]} h4 {[%emt 0:02:20]} 20. Nh1 {[%emt 0:01:06]} Ng6 {[%emt 0:01:42]} 21. Ree1 {[%emt 0:05:20]} Nh5 {[%emt 0:09:48]} 22. Nf2 {[%emt 0:02:06]} Nhf4 {[%emt 0:01:38]} 23. Qd2 {[%emt 0:00:52]} Qc7 {[%emt 0:15:20]} 24. Ng4 {[%emt 0:03:55]} c4 {[%emt 0:05:18]} 25. Nf2 {[%emt 0:02:11]} Qe7 {[%emt 0:01:27]} 26. Nh3 {[%emt 0:09:32] [#]} (26. Bc1 $15) 26... Nxh3+ $1 {[%emt 0:00:25]} 27. gxh3 {[%emt 0:00:01]} Qd7 {[%emt 0:00:52]} ({Besser ist} 27... dxe4 $17 28. Rxe4 {[#]} Ne5 $1 {[%mdl 512]}) 28. Kg2 {[%emt 0:00:35]} (28. e5 $17) 28... Qc6 {[%emt 0:01:33]} 29. e5 {[%emt 0:00:57]} Qe6 {[%emt 0:00:23]} 30. Qg5 {[%emt 0:00:43]} Qe7 {[%emt 0:05:11]} 31. Qg4 {[%emt 0:00:01]} Qd7 {[%emt 0:00:35]} 32. f4 {[%emt 0:00:01]} Qxg4+ {[%emt 0:01:44]} 33. hxg4 {[%emt 0:00:01]} f5 {[%emt 0:01:15]} 34. gxf5 {[%emt 0:03:04]} Ne7 {[%emt 0:00:06]} 35. f6 {[%emt 0:00:01]} gxf6 {[%emt 0:00:07]} 36. f5 {[%emt 0:00:01]} Kf7 {[%emt 0:01:15]} 37. e6+ {[%emt 0:06:17]} Kg7 {[%emt 0:00:21]} 38. a4 {[%emt 0:00:01]} Rh8 {[%emt 0:01:22]} 39. Ba3 {[%emt 0:02:45]} Rde8 {[%emt 0:00:09]} 40. Kh3 {[%emt 0:00:00]} Rh5 {[%emt 0:00:54]} 41. Rg1+ {[%emt 0:03:14]} Rg5 {[%emt 0:04:51]} 42. Bxe7 {[%emt 0:01:28]} Rxe7 {[%emt 0:00:36]} 43. Kxh4 {[%emt 0:00:30]} Rxg1 {[%emt 0:01:23]} 44. Rxg1+ {[%emt 0:00:02]} Kf8 {[%emt 0:00:24]} 45. Rg6 {[%emt 0:06:07]} Rh7+ {[%emt 0:00:18]} 46. Kg4 {[%emt 0:02:04]} Ke7 {[%emt 0:00:15]} 47. h4 {[%emt 0:00:55]} a5 {[%emt 0:06:01]} 48. h5 {[%emt 0:00:29]} b5 {[%emt 0:00:07]} 49. axb5 {[%emt 0:03:16]} a4 {[%emt 0:00:52]} 50. h6 {[%emt 0:02:34]} Kd6 {[%emt 0:00:28]} 51. Rg7 {[%emt 0:00:37]} 1-0

[Event "USA-ch Junior Girls 2018"]
[Site "Saint Louis"]
[Date "2018.07.21"]
[Round "9"]
[White "Matus, Nastassja"]
[Black "Nguyen, Emily"]
[Result "0-1"]
[ECO "D00"]
[WhiteElo "1960"]
[BlackElo "2215"]
[Annotator "RC"]
[PlyCount "88"]
[EventDate "2018.07.12"]
[EventType "tourn"]
[EventCountry "USA"]
[SourceTitle "playchess.com"]
[Source "ChessBase"]
[SourceQuality "1"]
[TimeControl "40/5400+30:1800+30"]

1. d4 {[%emt 0:00:00]} d5 {[%emt 0:00:10]} 2. Bf4 {[%emt 0:00:00]} c5 {[%emt 0:00:11]} 3. e3 {[%emt 0:00:00]} Nc6 {[%emt 0:00:37]} 4. Nf3 {[%emt 0:00:31]} Nf6 {[%emt 0:00:13]} 5. Nbd2 {[%emt 0:00:23]} Bg4 {[%emt 0:00:50]} 6. c3 {[%emt 0:02:15]} e6 {[%emt 0:00:16]} 7. Be2 {[%emt 0:00:45]} Bd6 {[%emt 0:04:54]} 8. Ne5 {[%emt 0:11:23]} Bxe2 {[%emt 0:02:25]} 9. Qxe2 {[%emt 0:00:08]} Qc7 {[%emt 0:02:02]} 10. Nxc6 {[%emt 0:12:35]} Bxf4 {[%emt 0:05:35]} 11. Nxa7 {[%emt 0:12:42]} Rxa7 {[%emt 0:00:50]} 12. exf4 {[%emt 0:00:08]} cxd4 {[%emt 0:01:55]} 13. cxd4 {[%emt 0:00:37]} Qxf4 {[%emt 0:03:44]} 14. Qb5+ {[%emt 0:07:15]} Nd7 {[%emt 0:00:49]} 15. Nf3 {[%emt 0:02:24]} Qe4+ {[%emt 0:02:21]} 16. Kd2 {[%emt 0:07:55]} Qf4+ {[%emt 0:01:18]} 17. Ke2 {[%emt 0:01:12]} Qe4+ {[%emt 0:02:15]} 18. Kd2 {[%emt 0:00:10]} b6 {[%emt 0:00:28]} 19. Rhc1 {[%emt 0:06:25]} O-O {[%emt 0:01:01]} 20. Qd3 {[%emt 0:04:10]} Qf4+ {[%emt 0:04:03]} 21. Qe3 {[%emt 0:00:16]} Qd6 {[%emt 0:00:09]} 22. a3 {[%emt 0:00:59]} b5 {[%emt 0:03:10]} 23. Qc3 {[%emt 0:11:36]} g6 {[%emt 0:18:33]} 24. g3 {[%emt 0:02:53]} Rfa8 {[%emt 0:02:29]} 25. Rab1 {[%emt 0:02:49]} Nb6 {[%emt 0:02:21]} 26. Qc5 {[%emt 0:02:01]} Qb8 {[%emt 0:00:09]} 27. Ne5 {[%emt 0:01:23]} Qb7 {[%emt 0:06:46]} 28. Ke2 {[%emt 0:03:05]} Nc4 {[%emt 0:01:09]} 29. Nxc4 {[%emt 0:02:10]} bxc4 {[%emt 0:08:49]} 30. h3 {[%emt 0:05:24]} Ra5 {[%emt 0:01:26]} 31. Qd6 {[%emt 0:00:21]} Rb5 {[%emt 0:00:06]} 32. Rc2 {[%emt 0:00:52]} Rb3 {[%emt 0:00:26]} 33. h4 {[%emt 0:00:57]} c3 {[%emt 0:03:10]} 34. Qc5 {[%emt 0:00:18]} Qa6+ {[%emt 0:01:56]} 35. Ke3 {[%emt 0:00:10]} Rc8 {[%emt 0:00:16]} 36. Rxc3 {[%emt 0:00:44]} Rxc3+ {[%emt 0:00:39]} 37. bxc3 {[%emt 0:00:36]} Rxc5 {[%emt 0:00:05]} 38. dxc5 {[%emt 0:00:05]} Qxa3 {[%emt 0:00:28]} 39. Rb8+ {[%emt 0:00:44]} Kg7 {[%emt 0:00:04]} 40. Kd4 {[%emt 0:00:00]} Qa2 {[%emt 0:00:38]} 41. Ke3 {[%emt 0:10:57]} Qc4 {[%emt 0:00:20]} 42. Rc8 {[%emt 0:02:12]} Qxc3+ {[%emt 0:00:10]} 43. Ke2 {[%emt 0:00:09]} d4 {[%emt 0:00:11]} 44. c6 {[%emt 0:00:19]} d3+ {[%emt 0:00:03]} 0-1